[Event "Late-Titled-Tuesday-Blitz-October-10-2023"]
[Site "Chess.com"]
[Date "2023.10.10"]
[Round "2"]
[White "AungTZ"]
[Black "PatzerSmashers"]
[Result "1-0"]
[WhiteElo "2037"]
[BlackElo "2404"]
[TimeControl "180+1"]
[EndTime "14:19:10 PDT"]
[Termination "AungTZ won on time"]

1. e4 {[%clk 0:02:53.5]} 1... c5 {[%clk 0:02:59.7]} 2. Nf3 {[%clk 0:02:53.3]}
2... a6 {[%clk 0:02:58.2]} 3. c3 {[%clk 0:02:52.9]} 3... d5 {[%clk 0:02:58]} 4.
e5 {[%clk 0:02:52.4]} 4... Nc6 {[%clk 0:02:55.8]} 5. d4 {[%clk 0:02:52.7]} 5...
Bg4 {[%clk 0:02:54.8]} 6. Be2 {[%clk 0:02:52.1]} 6... e6 {[%clk 0:02:53.6]} 7.
O-O {[%clk 0:02:52.2]} 7... Qb6 {[%clk 0:02:48.3]} 8. dxc5 {[%clk 0:02:47.1]}
8... Bxc5 {[%clk 0:02:46.6]} 9. b4 {[%clk 0:02:47.2]} 9... Be7 {[%clk 0:02:45]}
10. Bf4 {[%clk 0:02:40.1]} 10... Qc7 {[%clk 0:02:41.5]} 11. Re1 {[%clk
0:02:38.8]} 11... Nh6 {[%clk 0:02:36.8]} 12. h3 {[%clk 0:02:35.2]} 12... Bxf3
{[%clk 0:02:36.3]} 13. Bxf3 {[%clk 0:02:35.2]} 13... Nf5 {[%clk 0:02:36.9]} 14.
Nd2 {[%clk 0:02:31.9]} 14... O-O {[%clk 0:02:30.9]} 15. Rc1 {[%clk 0:02:31.7]}
15... Rfd8 {[%clk 0:02:20.7]} 16. Nb3 {[%clk 0:02:30.5]} 16... a5 {[%clk
0:02:16]} 17. b5 {[%clk 0:02:29.3]} 17... Nb8 {[%clk 0:02:12.3]} 18. Nd4 {[%clk
0:02:06.9]} 18... Nxd4 {[%clk 0:01:58.1]} 19. cxd4 {[%clk 0:02:06.7]} 19... Qb6
{[%clk 0:01:58.3]} 20. a4 {[%clk 0:02:01.4]} 20... Nd7 {[%clk 0:01:54.1]} 21.
Re2 {[%clk 0:01:59.4]} 21... Ba3 {[%clk 0:01:48.8]} 22. Rc3 {[%clk 0:01:51.8]}
22... Bb4 {[%clk 0:01:48.6]} 23. Rcc2 {[%clk 0:01:48.7]} 23... Rac8 {[%clk
0:01:44.7]} 24. Qd3 {[%clk 0:01:44.2]} 24... Nf8 {[%clk 0:01:39.7]} 25. g4
{[%clk 0:01:43.3]} 25... Qa7 {[%clk 0:01:29.7]} 26. Bg5 {[%clk 0:01:35.4]} 26...
Re8 {[%clk 0:01:26.3]} 27. Be3 {[%clk 0:01:34.4]} 27... Qb8 {[%clk 0:01:25]} 28.
Rxc8 {[%clk 0:01:29.9]} 28... Rxc8 {[%clk 0:01:24.8]} 29. Rc2 {[%clk 0:01:30]}
29... Nd7 {[%clk 0:01:24.6]} 30. Be2 {[%clk 0:01:16.7]} 30... Nb6 {[%clk
0:01:22.6]} 31. Qd1 {[%clk 0:01:16]} 31... Rxc2 {[%clk 0:01:05.2]} 32. Qxc2
{[%clk 0:01:15.5]} 32... Qc8 {[%clk 0:01:06.1]} 33. Qxc8+ {[%clk 0:01:14.5]}
33... Nxc8 {[%clk 0:01:07]} 34. Kf1 {[%clk 0:01:14]} 34... Nb6 {[%clk
0:01:06.2]} 35. Bd1 {[%clk 0:01:14.3]} 35... Kf8 {[%clk 0:01:06.3]} 36. Ke2
{[%clk 0:01:14.2]} 36... Ke7 {[%clk 0:01:06.9]} 37. Kd3 {[%clk 0:01:14.6]} 37...
Nc4 {[%clk 0:01:06.3]} 38. Bg5+ {[%clk 0:01:13.5]} 38... f6 {[%clk 0:01:06.1]}
39. Bc1 {[%clk 0:01:13.2]} 39... fxe5 {[%clk 0:01:03.1]} 40. dxe5 {[%clk
0:01:12.4]} 40... Nxe5+ {[%clk 0:01:01.7]} 41. Kd4 {[%clk 0:01:12.9]} 41... Nd7
{[%clk 0:00:58.4]} 42. Bg5+ {[%clk 0:01:11.5]} 42... Kd6 {[%clk 0:00:58.3]} 43.
f4 {[%clk 0:01:09.8]} 43... Bd2 {[%clk 0:00:52.1]} 44. Bc2 {[%clk 0:01:08]}
44... h6 {[%clk 0:00:47.8]} 45. Bd8 {[%clk 0:01:05.7]} 45... Bxf4 {[%clk
0:00:46.5]} 46. Bxa5 {[%clk 0:01:05.5]} 46... e5+ {[%clk 0:00:36.5]} 47. Kd3
{[%clk 0:01:04.1]} 47... Nc5+ {[%clk 0:00:35.6]} 48. Ke2 {[%clk 0:01:02.7]}
48... Ne6 {[%clk 0:00:29.8]} 49. Bb4+ {[%clk 0:01:02.1]} 49... Kc7 {[%clk
0:00:29.5]} 50. Bc3 {[%clk 0:00:58]} 50... d4 {[%clk 0:00:26]} 51. Bb4 {[%clk
0:00:57.6]} 51... b6 {[%clk 0:00:24.5]} 52. a5 {[%clk 0:00:56.7]} 52... Nc5
{[%clk 0:00:20.7]} 53. a6 {[%clk 0:00:53.8]} 53... Bg5 {[%clk 0:00:16.5]} 54.
Bf5 {[%clk 0:00:50]} 54... Be7 {[%clk 0:00:14.1]} 55. Kf3 {[%clk 0:00:44]} 55...
Bd6 {[%clk 0:00:09.6]} 56. Bh7 {[%clk 0:00:36.1]} 56... Kd7 {[%clk 0:00:04.2]}
57. Bf5+ {[%clk 0:00:35.9]} 57... Kc7 {[%clk 0:00:04.4]} 58. Bh7 {[%clk
0:00:35.6]} 58... Kb8 {[%clk 0:00:04.4]} 59. Bf5 {[%clk 0:00:31.1]} 59... Bf8
{[%clk 0:00:04.6]} 60. Bh7 {[%clk 0:00:30.4]} 60... Nd7 {[%clk 0:00:04.1]} 61.
Bxf8 {[%clk 0:00:27.9]} 61... Nxf8 {[%clk 0:00:05]} 62. Bf5 {[%clk 0:00:27.3]}
62... g6 {[%clk 0:00:05.4]} 63. Bd3 {[%clk 0:00:26]} 63... Ne6 {[%clk
0:00:05.8]} 64. Bxg6 {[%clk 0:00:25.7]} 64... Ng5+ {[%clk 0:00:04.5]} 65. Kg3
{[%clk 0:00:23.2]} 65... e4 {[%clk 0:00:02.9]} 66. h4 {[%clk 0:00:23]} 66... d3
{[%clk 0:00:02.6]} 67. Kf2 {[%clk 0:00:19.8]} 67... Ne6 {[%clk 0:00:01.1]} 68.
Bxe4 {[%clk 0:00:19.4]} 1-0

[Event "Late-Titled-Tuesday-Blitz-October-10-2023"]
[Site "Chess.com"]
[Date "2023.10.10"]
[Round "2"]
[White "NateSolon"]
[Black "frederiksvane"]
[Result "0-1"]
[WhiteElo "2573"]
[BlackElo "2893"]
[TimeControl "180+1"]
[EndTime "14:19:30 PDT"]
[Termination "frederiksvane won on time"]

1. d4 {[%clk 0:03:00.9]} 1... d5 {[%clk 0:02:59.9]} 2. Bf4 {[%clk 0:03:00.3]}
2... e6 {[%clk 0:02:58.8]} 3. e3 {[%clk 0:02:59.5]} 3... Bd6 {[%clk 0:02:59.4]}
4. Nf3 {[%clk 0:02:58.8]} 4... Ne7 {[%clk 0:02:59.7]} 5. Bd3 {[%clk 0:02:47.7]}
5... c5 {[%clk 0:02:59.8]} 6. c3 {[%clk 0:02:42.1]} 6... Nbc6 {[%clk 0:02:57.6]}
7. O-O {[%clk 0:02:33]} 7... Bxf4 {[%clk 0:02:47.8]} 8. exf4 {[%clk 0:02:33.9]}
8... cxd4 {[%clk 0:02:48.3]} 9. cxd4 {[%clk 0:02:34.4]} 9... Qb6 {[%clk
0:02:49]} 10. Nc3 {[%clk 0:02:28.5]} 10... h6 {[%clk 0:02:01.1]} 11. Na4 {[%clk
0:02:23.3]} 11... Qc7 {[%clk 0:02:01.4]} 12. Rc1 {[%clk 0:02:22.9]} 12... Qxf4
{[%clk 0:01:58.9]} 13. Bb1 {[%clk 0:02:06.4]} 13... O-O {[%clk 0:01:57.9]} 14.
Qd3 {[%clk 0:02:02.7]} 14... Ng6 {[%clk 0:01:56.1]} 15. Nc5 {[%clk 0:01:59.1]}
15... Qd6 {[%clk 0:01:24.1]} 16. h4 {[%clk 0:01:52.4]} 16... Rd8 {[%clk
0:01:09.6]} 17. g3 {[%clk 0:01:52.2]} 17... b6 {[%clk 0:01:07.7]} 18. Nb3 {[%clk
0:01:35.9]} 18... a5 {[%clk 0:01:04.6]} 19. Qe3 {[%clk 0:01:36.2]} 19... Ba6
{[%clk 0:00:54.7]} 20. Rfe1 {[%clk 0:01:36.2]} 20... Nf8 {[%clk 0:00:38.2]} 21.
Ne5 {[%clk 0:01:35.2]} 21... Rac8 {[%clk 0:00:34.3]} 22. a3 {[%clk 0:01:06.5]}
22... Ne7 {[%clk 0:00:24.1]} 23. Qf3 {[%clk 0:00:55.8]} 23... f6 {[%clk
0:00:22.7]} 24. Nd3 {[%clk 0:00:55.4]} 24... Rxc1 {[%clk 0:00:20.6]} 25. Nbxc1
{[%clk 0:00:52.7]} 25... Rc8 {[%clk 0:00:16.7]} 26. Nf4 {[%clk 0:00:45.5]} 26...
e5 {[%clk 0:00:14.6]} 27. dxe5 {[%clk 0:00:46.4]} 27... fxe5 {[%clk 0:00:15.5]}
28. Nh5 {[%clk 0:00:46.9]} 28... e4 {[%clk 0:00:15.1]} 29. Qg4 {[%clk
0:00:44.3]} 29... Qg6 {[%clk 0:00:14.3]} 30. Qd1 {[%clk 0:00:39.1]} 30... Rxc1
{[%clk 0:00:13.9]} 31. Qxc1 {[%clk 0:00:30.3]} 31... Qxh5 {[%clk 0:00:14.2]} 32.
Qc7 {[%clk 0:00:30.5]} 32... Nfg6 {[%clk 0:00:14.2]} 33. Qxb6 {[%clk 0:00:29.5]}
33... Bc8 {[%clk 0:00:14.7]} 34. Bc2 {[%clk 0:00:24.6]} 34... Bg4 {[%clk
0:00:07]} 35. Qxa5 {[%clk 0:00:21.5]} 35... Bf3 {[%clk 0:00:06.9]} 36. Bxe4
{[%clk 0:00:16.2]} 36... dxe4 {[%clk 0:00:06]} 37. Qxh5 {[%clk 0:00:16.3]} 37...
Bxh5 {[%clk 0:00:06.9]} 38. Rxe4 {[%clk 0:00:16.6]} 38... Bf3 {[%clk 0:00:07.6]}
39. Re3 {[%clk 0:00:16.5]} 39... Bd1 {[%clk 0:00:04.7]} 40. b4 {[%clk
0:00:16.6]} 40... Kf7 {[%clk 0:00:05.1]} 41. b5 {[%clk 0:00:16.5]} 41... Ba4
{[%clk 0:00:03.3]} 42. b6 {[%clk 0:00:15.2]} 42... Bc6 {[%clk 0:00:03.8]} 43. a4
{[%clk 0:00:05]} 43... Nd5 {[%clk 0:00:04.2]} 44. Rb3 {[%clk 0:00:03]} 44... Bb7
{[%clk 0:00:02.8]} 45. a5 {[%clk 0:00:03.7]} 45... Ne5 {[%clk 0:00:02]} 46. a6
{[%clk 0:00:03.9]} 46... Bxa6 {[%clk 0:00:02.6]} 47. b7 {[%clk 0:00:04.8]} 47...
Nc6 {[%clk 0:00:02.6]} 48. b8=Q {[%clk 0:00:04.8]} 48... Nxb8 {[%clk 0:00:03.1]}
49. Rxb8 {[%clk 0:00:05.6]} 49... Bd3 {[%clk 0:00:02.8]} 50. Rb7+ {[%clk
0:00:05.2]} 50... Kf6 {[%clk 0:00:03.3]} 51. Kg2 {[%clk 0:00:05.6]} 51... Be4+
{[%clk 0:00:03.9]} 52. Kg1 {[%clk 0:00:04.9]} 52... Ne7 {[%clk 0:00:02.2]} 53.
Rb3 {[%clk 0:00:05.2]} 53... Bd5 {[%clk 0:00:02.5]} 54. Rc3 {[%clk 0:00:05.2]}
54... Nf5 {[%clk 0:00:02.9]} 55. Ra3 {[%clk 0:00:03.9]} 55... h5 {[%clk
0:00:03.1]} 56. Kf1 {[%clk 0:00:03.6]} 56... Nd4 {[%clk 0:00:03.2]} 57. Ra6+
{[%clk 0:00:01.6]} 57... Kf5 {[%clk 0:00:02.8]} 58. Ra5 {[%clk 0:00:02.5]} 58...
Ke5 {[%clk 0:00:03.3]} 59. Ke1 {[%clk 0:00:02.1]} 59... Nf3+ {[%clk 0:00:02.9]}
60. Ke2 {[%clk 0:00:02.2]} 60... Nd4+ {[%clk 0:00:02.3]} 61. Ke3 {[%clk
0:00:02.8]} 61... Nf5+ {[%clk 0:00:02.8]} 62. Ke2 {[%clk 0:00:03.4]} 62... g6
{[%clk 0:00:03.1]} 63. Ra7 {[%clk 0:00:01.6]} 63... Be4 {[%clk 0:00:03.5]} 64.
Ra5+ {[%clk 0:00:01.7]} 64... Bd5 {[%clk 0:00:03.9]} 65. Ra3 {[%clk 0:00:02.6]}
65... Nd4+ {[%clk 0:00:04.3]} 66. Kf1 {[%clk 0:00:02.6]} 66... Bf3 {[%clk
0:00:04.5]} 67. Re3+ {[%clk 0:00:01.9]} 67... Kd5 {[%clk 0:00:05]} 68. Kg1
{[%clk 0:00:02.8]} 68... Be4 {[%clk 0:00:05.4]} 69. Kf1 {[%clk 0:00:02.3]} 69...
Ke5 {[%clk 0:00:05.7]} 70. Kg1 {[%clk 0:00:02.6]} 70... Kf5 {[%clk 0:00:06.3]}
71. Kf1 {[%clk 0:00:03.2]} 71... Nf3 {[%clk 0:00:06.6]} 72. Ra3 {[%clk
0:00:01.9]} 72... Ne5 {[%clk 0:00:06.3]} 73. Ra5 {[%clk 0:00:02.5]} 73... Bd3+
{[%clk 0:00:06.5]} 74. Ke1 {[%clk 0:00:02.9]} 74... Ke4 {[%clk 0:00:07]} 75. Ra7
{[%clk 0:00:01.7]} 75... Nf3+ {[%clk 0:00:07.3]} 76. Kd1 {[%clk 0:00:01.2]}
76... Kf5 {[%clk 0:00:07.9]} 77. Ra5+ {[%clk 0:00:01.2]} 77... Kg4 {[%clk
0:00:07.9]} 78. Ra3 {[%clk 0:00:02.1]} 78... Bf5 {[%clk 0:00:07.6]} 79. Re3
{[%clk 0:00:02.5]} 79... Ng1 {[%clk 0:00:06.1]} 80. Ke1 {[%clk 0:00:02.5]} 80...
Nf3+ {[%clk 0:00:05.3]} 81. Ke2 {[%clk 0:00:03.1]} 81... Nd4+ {[%clk 0:00:05.8]}
82. Kd2 {[%clk 0:00:03.8]} 82... Kh3 {[%clk 0:00:05.7]} 83. Ra3 {[%clk 0:00:03]}
83... Kg2 {[%clk 0:00:06]} 84. Ra4 {[%clk 0:00:03.4]} 84... Nf3+ {[%clk
0:00:03.9]} 85. Ke3 {[%clk 0:00:03.8]} 85... Nh2 {[%clk 0:00:04.3]} 86. Rf4
{[%clk 0:00:02.9]} 86... Ng4+ {[%clk 0:00:04.8]} 87. Ke2 {[%clk 0:00:03.5]}
87... Bd7 {[%clk 0:00:04.7]} 88. Rf7 {[%clk 0:00:02.7]} 88... Be6 {[%clk
0:00:04.8]} 89. Ke1 {[%clk 0:00:03.1]} 89... Bxf7 {[%clk 0:00:04.9]} 0-1

[Event "Late-Titled-Tuesday-Blitz-October-10-2023"]
[Site "Chess.com"]
[Date "2023.10.10"]
[Round "2"]
[White "dedpihto_v_kozhanom_palto"]
[Black "YouShallNotPass001"]
[Result "0-1"]
[WhiteElo "2652"]
[BlackElo "2405"]
[TimeControl "180+1"]
[EndTime "14:19:30 PDT"]
[Termination "YouShallNotPass001 won by checkmate"]

1. c4 {[%clk 0:02:58.6]} 1... Nf6 {[%clk 0:03:00.1]} 2. Nc3 {[%clk 0:02:59]}
2... e6 {[%clk 0:03:01]} 3. e4 {[%clk 0:02:59.4]} 3... d5 {[%clk 0:03:01.7]} 4.
e5 {[%clk 0:03:00]} 4... Ne4 {[%clk 0:03:02.1]} 5. Nxe4 {[%clk 0:02:59.8]} 5...
dxe4 {[%clk 0:03:02.2]} 6. Qg4 {[%clk 0:03:00.4]} 6... Nc6 {[%clk 0:02:51.3]} 7.
Qxe4 {[%clk 0:02:59.9]} 7... Qd4 {[%clk 0:02:50.3]} 8. Qxd4 {[%clk 0:02:58]}
8... Nxd4 {[%clk 0:02:51.2]} 9. Bd3 {[%clk 0:02:48.3]} 9... Bd7 {[%clk
0:02:48.6]} 10. Ne2 {[%clk 0:02:48.1]} 10... Bc5 {[%clk 0:02:42.7]} 11. Be4
{[%clk 0:02:43.5]} 11... O-O-O {[%clk 0:02:41.2]} 12. b3 {[%clk 0:02:22.1]}
12... Nxe2 {[%clk 0:02:24.8]} 13. Kxe2 {[%clk 0:02:23]} 13... Bd4 {[%clk
0:02:24.9]} 14. Rb1 {[%clk 0:02:22.3]} 14... Bxe5 {[%clk 0:02:25.2]} 15. Rd1
{[%clk 0:02:11.6]} 15... f5 {[%clk 0:02:24.3]} 16. Bf3 {[%clk 0:02:03.8]} 16...
g5 {[%clk 0:02:22]} 17. d4 {[%clk 0:02:02.8]} 17... Bf6 {[%clk 0:02:11.6]} 18.
g3 {[%clk 0:01:53.8]} 18... h5 {[%clk 0:02:09.6]} 19. Be3 {[%clk 0:01:49.8]}
19... h4 {[%clk 0:02:08.7]} 20. b4 {[%clk 0:01:38.7]} 20... hxg3 {[%clk
0:01:59.5]} 21. hxg3 {[%clk 0:01:39.6]} 21... Ba4 {[%clk 0:01:56.4]} 22. Rd2
{[%clk 0:01:35.4]} 22... f4 {[%clk 0:01:53.1]} 23. gxf4 {[%clk 0:01:34]} 23...
gxf4 {[%clk 0:01:54]} 24. Bxf4 {[%clk 0:01:33.3]} 24... Rxd4 {[%clk 0:01:53.6]}
25. Rxd4 {[%clk 0:01:23.1]} 25... Bxd4 {[%clk 0:01:54.5]} 26. Bg4 {[%clk
0:01:12.1]} 26... Kb8 {[%clk 0:01:52.2]} 27. Kd3 {[%clk 0:00:55.9]} 27... Bxf2
{[%clk 0:01:40.3]} 28. Bxe6 {[%clk 0:00:55.8]} 28... Rd8+ {[%clk 0:01:39.3]} 29.
Ke4 {[%clk 0:00:42.9]} 29... Bc2+ {[%clk 0:01:38.4]} 30. Kf3 {[%clk 0:00:43.3]}
30... Bxb1 {[%clk 0:01:37]} 31. Kxf2 {[%clk 0:00:43.9]} 31... Bxa2 {[%clk
0:01:33.3]} 32. b5 {[%clk 0:00:42.1]} 32... Re8 {[%clk 0:01:28.9]} 33. Bd5
{[%clk 0:00:40.9]} 33... Rf8 {[%clk 0:01:25]} 34. Ke3 {[%clk 0:00:40.4]} 34...
Re8+ {[%clk 0:01:23.7]} 35. Kd4 {[%clk 0:00:39.8]} 35... Re1 {[%clk 0:01:22.6]}
36. Kc5 {[%clk 0:00:37.2]} 36... Rf1 {[%clk 0:01:15.5]} 37. Be5 {[%clk
0:00:36.3]} 37... Rf5 {[%clk 0:01:11.5]} 38. Bg3 {[%clk 0:00:35.7]} 38... Rg5
{[%clk 0:01:11.2]} 39. Bf4 {[%clk 0:00:35.9]} 39... Rg4 {[%clk 0:01:10.7]} 40.
Be5 {[%clk 0:00:36]} 40... Rg6 {[%clk 0:00:51.6]} 41. Kb4 {[%clk 0:00:29.6]}
41... Kc8 {[%clk 0:00:44.7]} 42. Be4 {[%clk 0:00:28.2]} 42... Rg1 {[%clk
0:00:44.1]} 43. Bd4 {[%clk 0:00:25.8]} 43... Re1 {[%clk 0:00:40.4]} 44. Bf5+
{[%clk 0:00:22.5]} 44... Kb8 {[%clk 0:00:40.6]} 45. Bc3 {[%clk 0:00:18.7]} 45...
Rf1 {[%clk 0:00:37.4]} 46. Be4 {[%clk 0:00:18.5]} 46... Bb1 {[%clk 0:00:36.5]}
47. Bd5 {[%clk 0:00:18.7]} 47... Bf5 {[%clk 0:00:33]} 48. Be5 {[%clk 0:00:18.6]}
48... Re1 {[%clk 0:00:30.7]} 49. Bg3 {[%clk 0:00:19.2]} 49... Re3 {[%clk
0:00:29.9]} 50. Bf4 {[%clk 0:00:19.5]} 50... Re2 {[%clk 0:00:30.2]} 51. c5
{[%clk 0:00:15.2]} 51... Be4 {[%clk 0:00:27.8]} 52. Bc4 {[%clk 0:00:14.4]} 52...
Rf2 {[%clk 0:00:27.1]} 53. Bg3 {[%clk 0:00:12.9]} 53... Rf3 {[%clk 0:00:26.9]}
54. Be5 {[%clk 0:00:13.1]} 54... Rf5 {[%clk 0:00:26.4]} 55. Bg3 {[%clk
0:00:13.7]} 55... b6 {[%clk 0:00:25.8]} 56. c6 {[%clk 0:00:08.7]} 56... a5+
{[%clk 0:00:18.7]} 57. Kc3 {[%clk 0:00:08.7]} 57... Rc5 {[%clk 0:00:17.2]} 58.
Kd4 {[%clk 0:00:08.6]} 58... Bg2 {[%clk 0:00:17]} 59. Be5 {[%clk 0:00:07]} 59...
Bf3 {[%clk 0:00:15]} 60. Bf4 {[%clk 0:00:07.1]} 60... Bd1 {[%clk 0:00:14.6]} 61.
Bc1 {[%clk 0:00:05.6]} 61... Ba4 {[%clk 0:00:14.3]} 62. Ba3 {[%clk 0:00:06.1]}
62... Rh5 {[%clk 0:00:13.6]} 63. Bf7 {[%clk 0:00:04.7]} 63... Rxb5 {[%clk
0:00:13.1]} 64. Bd5 {[%clk 0:00:04.7]} 64... Rb1 {[%clk 0:00:12.7]} 65. Ke5
{[%clk 0:00:04.8]} 65... Re1+ {[%clk 0:00:12.5]} 66. Kf6 {[%clk 0:00:04.9]}
66... Re3 {[%clk 0:00:12.8]} 67. Be7 {[%clk 0:00:04]} 67... Rc3 {[%clk
0:00:12.8]} 68. Ke5 {[%clk 0:00:03.2]} 68... Bxc6 {[%clk 0:00:11.9]} 69. Be6
{[%clk 0:00:03.9]} 69... Rc1 {[%clk 0:00:11.1]} 70. Bg5 {[%clk 0:00:03.7]} 70...
Rc2 {[%clk 0:00:10.9]} 71. Kd4 {[%clk 0:00:04.1]} 71... a4 {[%clk 0:00:11]} 72.
Bf5 {[%clk 0:00:04.7]} 72... Rc5 {[%clk 0:00:10.7]} 73. Be4 {[%clk 0:00:01.9]}
73... Bxe4 {[%clk 0:00:10]} 74. Be3 {[%clk 0:00:02.8]} 74... Bd5 {[%clk
0:00:09.4]} 75. Kd3 {[%clk 0:00:03.1]} 75... Rc6 {[%clk 0:00:09.3]} 76. Kd2
{[%clk 0:00:03.7]} 76... a3 {[%clk 0:00:09.4]} 77. Bd4 {[%clk 0:00:04.4]} 77...
a2 {[%clk 0:00:09.9]} 78. Be5 {[%clk 0:00:05.2]} 78... b5 {[%clk 0:00:10.1]} 79.
Bd4 {[%clk 0:00:05.3]} 79... b4 {[%clk 0:00:10.5]} 80. Bb2 {[%clk 0:00:05.9]}
80... b3 {[%clk 0:00:10.8]} 81. Bd4 {[%clk 0:00:06.6]} 81... Be6 {[%clk
0:00:11.3]} 82. Kd3 {[%clk 0:00:07.5]} 82... Rc2 {[%clk 0:00:11.5]} 83. Be5
{[%clk 0:00:07]} 83... Bf5+ {[%clk 0:00:11.8]} 84. Ke3 {[%clk 0:00:07.1]} 84...
b2 {[%clk 0:00:12.4]} 85. Kf4 {[%clk 0:00:07.4]} 85... b1=Q {[%clk 0:00:12.1]}
86. Kg5 {[%clk 0:00:08.3]} 86... Qd1 {[%clk 0:00:12.3]} 87. Kf6 {[%clk
0:00:08.9]} 87... Bc8 {[%clk 0:00:12.4]} 88. Kg7 {[%clk 0:00:09.1]} 88... Rf2
{[%clk 0:00:12.6]} 89. Kh8 {[%clk 0:00:08.1]} 89... Qg1 {[%clk 0:00:13]} 90. Kh7
{[%clk 0:00:07.1]} 90... Rf3 {[%clk 0:00:13.1]} 91. Bg7 {[%clk 0:00:05.6]} 91...
Rh3+ {[%clk 0:00:12.4]} 92. Kg8 {[%clk 0:00:06.2]} 92... Be6+ {[%clk 0:00:12.4]}
93. Kf8 {[%clk 0:00:06.4]} 93... Qf2+ {[%clk 0:00:12.1]} 94. Ke8 {[%clk
0:00:06.4]} 94... Qf7+ {[%clk 0:00:12.5]} 95. Kd8 {[%clk 0:00:07.1]} 95... Qd7#
{[%clk 0:00:13.1]} 0-1

[Event "Late-Titled-Tuesday-Blitz-October-10-2023"]
[Site "Chess.com"]
[Date "2023.10.10"]
[Round "3"]
[White "Mariia89"]
[Black "TheoSlade"]
[Result "0-1"]
[WhiteElo "2063"]
[BlackElo "2515"]
[TimeControl "180+1"]
[EndTime "14:22:06 PDT"]
[Termination "TheoSlade won by resignation"]

1. d4 {[%clk 0:02:48.6]} 1... d5 {[%clk 0:02:59.7]} 2. c4 {[%clk 0:02:48.6]}
2... e6 {[%clk 0:03:00]} 3. Nc3 {[%clk 0:02:48.9]} 3... a6 {[%clk 0:03:00.5]} 4.
Nf3 {[%clk 0:02:48.8]} 4... dxc4 {[%clk 0:03:00.6]} 5. e4 {[%clk 0:02:49.6]}
5... b5 {[%clk 0:03:00]} 6. e5 {[%clk 0:02:48.7]} 6... c5 {[%clk 0:02:49]} 7.
Ne4 {[%clk 0:02:46.4]} 7... cxd4 {[%clk 0:02:45.5]} 8. Bg5 {[%clk 0:02:44.2]}
8... Bb4+ {[%clk 0:02:42.8]} 9. Nfd2 {[%clk 0:02:31.8]} 9... Qc7 {[%clk
0:02:40.7]} 10. a3 {[%clk 0:02:05.5]} 10... Bxd2+ {[%clk 0:02:40.4]} 11. Qxd2
{[%clk 0:02:00.9]} 11... Qxe5 {[%clk 0:02:39.4]} 12. Qe2 {[%clk 0:01:53.1]}
12... Bb7 {[%clk 0:02:33.3]} 13. Nf6+ {[%clk 0:01:50.8]} 13... gxf6 {[%clk
0:02:33]} 0-1

[Event "Late-Titled-Tuesday-Blitz-October-10-2023"]
[Site "Chess.com"]
[Date "2023.10.10"]
[Round "3"]
[White "Arystanner"]
[Black "nihalsarin"]
[Result "0-1"]
[WhiteElo "2819"]
[BlackElo "3118"]
[TimeControl "180+1"]
[EndTime "14:22:13 PDT"]
[Termination "nihalsarin won by resignation"]

1. e4 {[%clk 0:02:55.3]} 1... c6 {[%clk 0:03:00.5]} 2. d4 {[%clk 0:02:55]} 2...
d5 {[%clk 0:03:01.4]} 3. exd5 {[%clk 0:02:55.3]} 3... cxd5 {[%clk 0:03:01.5]} 4.
Nf3 {[%clk 0:02:56.1]} 4... Nc6 {[%clk 0:03:02]} 5. c3 {[%clk 0:02:56.6]} 5...
Bg4 {[%clk 0:03:01.9]} 6. h3 {[%clk 0:02:57]} 6... Bh5 {[%clk 0:03:01.7]} 7. Qb3
{[%clk 0:02:57]} 7... Qc8 {[%clk 0:02:56]} 8. Ne5 {[%clk 0:02:49.9]} 8... f6
{[%clk 0:02:50.5]} 9. Nd3 {[%clk 0:02:34.8]} 9... e6 {[%clk 0:02:47.6]} 10. Bf4
{[%clk 0:02:30]} 10... Nge7 {[%clk 0:02:43]} 11. Nd2 {[%clk 0:02:28.8]} 11... g5
{[%clk 0:02:40.3]} 12. Bh2 {[%clk 0:02:27.6]} 12... Kf7 {[%clk 0:02:35.4]} 13.
h4 {[%clk 0:02:11.2]} 13... h6 {[%clk 0:02:34.5]} 14. Be2 {[%clk 0:01:57.7]}
14... Bxe2 {[%clk 0:02:34]} 15. Kxe2 {[%clk 0:01:58.6]} 15... Nf5 {[%clk
0:02:29.2]} 16. hxg5 {[%clk 0:01:52.3]} 16... Nfxd4+ {[%clk 0:02:29.2]} 0-1

[Event "Late-Titled-Tuesday-Blitz-October-10-2023"]
[Site "Chess.com"]
[Date "2023.10.10"]
[Round "3"]
[White "DonJuanEGenaro"]
[Black "carloseduar100"]
[Result "0-1"]
[WhiteElo "1913"]
[BlackElo "2329"]
[TimeControl "180+1"]
[EndTime "14:22:50 PDT"]
[Termination "carloseduar100 won by resignation"]

1. d4 {[%clk 0:02:59.4]} 1... d5 {[%clk 0:02:59.8]} 2. Nf3 {[%clk 0:02:59.9]}
2... c6 {[%clk 0:02:59.8]} 3. c4 {[%clk 0:03:00.3]} 3... dxc4 {[%clk 0:02:59.6]}
4. e4 {[%clk 0:02:59.4]} 4... b5 {[%clk 0:02:59.7]} 5. a4 {[%clk 0:02:58.5]}
5... Bb7 {[%clk 0:02:58.7]} 6. b3 {[%clk 0:02:52.3]} 6... cxb3 {[%clk
0:02:58.5]} 7. Qxb3 {[%clk 0:02:52.1]} 7... a6 {[%clk 0:02:59]} 8. Ne5 {[%clk
0:02:46.1]} 8... e6 {[%clk 0:02:59.2]} 9. axb5 {[%clk 0:02:45.5]} 9... cxb5
{[%clk 0:02:57.5]} 10. Bxb5+ {[%clk 0:02:39.3]} 10... axb5 {[%clk 0:02:47.7]}
11. Qxb5+ {[%clk 0:02:38.4]} 11... Nd7 {[%clk 0:02:46.1]} 12. Qxb7 {[%clk
0:02:26.7]} 12... Rxa1 {[%clk 0:02:45.9]} 13. Nc6 {[%clk 0:02:26.5]} 13... Qa8
{[%clk 0:02:39.6]} 14. Qxa8+ {[%clk 0:02:23.1]} 14... Rxa8 {[%clk 0:02:40.5]}
15. O-O {[%clk 0:02:21.6]} 15... Ne7 {[%clk 0:02:39.2]} 16. d5 {[%clk
0:02:07.2]} 16... Nxc6 {[%clk 0:02:38.7]} 17. dxc6 {[%clk 0:02:07]} 17... Ne5
{[%clk 0:02:39.2]} 18. Bf4 {[%clk 0:02:02.3]} 18... Nxc6 {[%clk 0:02:38.8]} 19.
Nc3 {[%clk 0:02:01.1]} 19... Bb4 {[%clk 0:02:36.5]} 20. Nb5 {[%clk 0:02:00.9]}
20... O-O {[%clk 0:02:36.3]} 21. h4 {[%clk 0:01:59.2]} 21... h6 {[%clk
0:02:35.1]} 22. Rc1 {[%clk 0:01:57]} 22... Rfc8 {[%clk 0:02:33.6]} 23. Nc7
{[%clk 0:01:56.6]} 23... Bd2 {[%clk 0:02:21.7]} 24. Rxc6 {[%clk 0:01:54.6]}
24... Bxf4 {[%clk 0:02:21.3]} 0-1